[Event "Late-Titled-Tuesday-Blitz-April-02-2024"]
[Site "Chess.com"]
[Date "2024.04.02"]
[Round "3"]
[White "ninguno46"]
[Black "laskakid"]
[Result "1-0"]
[WhiteElo "2584"]
[BlackElo "2300"]
[TimeControl "180+1"]
[EndTime "14:27:31 PDT"]
[Termination "ninguno46 won on time"]

1. e4 {[%clk 0:03:00.9]} 1... d6 {[%clk 0:03:00.1]} 2. d4 {[%clk 0:03:00.3]}
2... Nf6 {[%clk 0:03:00.5]} 3. f3 {[%clk 0:03:00]} 3... e5 {[%clk 0:03:00]} 4.
dxe5 {[%clk 0:02:59.4]} 4... dxe5 {[%clk 0:02:59.7]} 5. Qxd8+ {[%clk 0:02:59.8]}
5... Kxd8 {[%clk 0:03:00.2]} 6. Bc4 {[%clk 0:02:58.9]} 6... Ke8 {[%clk
0:02:57.7]} 7. Be3 {[%clk 0:02:55.6]} 7... a5 {[%clk 0:02:53.7]} 8. a4 {[%clk
0:02:52.5]} 8... Nbd7 {[%clk 0:02:52.6]} 9. Nd2 {[%clk 0:02:51.5]} 9... Bc5
{[%clk 0:02:51.9]} 10. Bxc5 {[%clk 0:02:38.1]} 10... Nxc5 {[%clk 0:02:52.8]} 11.
Ne2 {[%clk 0:02:37.3]} 11... Ke7 {[%clk 0:02:42]} 12. b3 {[%clk 0:02:18.5]}
12... c6 {[%clk 0:02:35.3]} 13. Nc3 {[%clk 0:02:15.9]} 13... Be6 {[%clk
0:02:18]} 14. O-O-O {[%clk 0:02:14.8]} 14... Rhd8 {[%clk 0:02:16.5]} 15. Bxe6
{[%clk 0:02:12.5]} 15... Nxe6 {[%clk 0:02:15.7]} 16. Nc4 {[%clk 0:02:12.5]}
16... Nd7 {[%clk 0:01:59.2]} 17. Rd2 {[%clk 0:02:11.5]} 17... f6 {[%clk
0:01:48.6]} 18. Rhd1 {[%clk 0:02:10.1]} 18... Nd4 {[%clk 0:01:48.6]} 19. f4
{[%clk 0:01:51.2]} 19... b5 {[%clk 0:01:04.6]} 20. axb5 {[%clk 0:01:50.1]} 20...
cxb5 {[%clk 0:01:04.6]} 21. Nd5+ {[%clk 0:01:50.1]} 21... Kf7 {[%clk 0:00:46.3]}
22. Nd6+ {[%clk 0:01:44.7]} 22... Kf8 {[%clk 0:00:31.5]} 23. fxe5 {[%clk
0:01:38.7]} 23... fxe5 {[%clk 0:00:30.3]} 24. Rf2+ {[%clk 0:01:33.2]} 24... Nf6
{[%clk 0:00:22.3]} 25. Nb7 {[%clk 0:01:19.1]} 25... Rd7 {[%clk 0:00:17.4]} 26.
Nc5 {[%clk 0:01:18.5]} 26... Rd6 {[%clk 0:00:15.6]} 27. Nd3 {[%clk 0:01:15.3]}
27... Re8 {[%clk 0:00:14.4]} 28. Nxe5 {[%clk 0:01:09.2]} 28... Nxb3+ {[%clk
0:00:10.8]} 29. cxb3 {[%clk 0:01:08.2]} 29... Rxe5 {[%clk 0:00:11.1]} 30. Nxf6
{[%clk 0:01:00.8]} 30... Rxd1+ {[%clk 0:00:10.2]} 31. Kxd1 {[%clk 0:01:00.6]}
31... gxf6 {[%clk 0:00:10.5]} 32. Rxf6+ {[%clk 0:01:00.3]} 32... Kg7 {[%clk
0:00:10.5]} 33. Rf4 {[%clk 0:00:54.2]} 33... a4 {[%clk 0:00:09.7]} 34. bxa4
{[%clk 0:00:53.8]} 34... bxa4 {[%clk 0:00:10]} 35. Kc2 {[%clk 0:00:53.4]} 35...
a3 {[%clk 0:00:07.9]} 36. Kb3 {[%clk 0:00:53.1]} 36... Ra5 {[%clk 0:00:07.7]}
37. Rf5 {[%clk 0:00:51.5]} 37... Ra6 {[%clk 0:00:05.8]} 38. Ka2 {[%clk
0:00:51.5]} 38... Ra4 {[%clk 0:00:05.4]} 39. Rf4 {[%clk 0:00:43.1]} 39... Kg6
{[%clk 0:00:05.4]} 40. g3 {[%clk 0:00:41.2]} 40... Kg5 {[%clk 0:00:05.5]} 41.
h4+ {[%clk 0:00:40.6]} 41... Kg6 {[%clk 0:00:05.1]} 42. e5 {[%clk 0:00:39.2]}
42... Ra7 {[%clk 0:00:03]} 43. g4 {[%clk 0:00:37.7]} 43... Re7 {[%clk 0:00:02]}
44. Rf6+ {[%clk 0:00:36.4]} 44... Kg7 {[%clk 0:00:01.2]} 45. Rf5 {[%clk
0:00:36.6]} 45... Ra7 {[%clk 0:00:01.8]} 46. e6 {[%clk 0:00:34.3]} 1-0

[Event "Late-Titled-Tuesday-Blitz-April-02-2024"]
[Site "Chess.com"]
[Date "2024.04.02"]
[Round "3"]
[White "rikchessmx"]
[Black "Laico"]
[Result "0-1"]
[WhiteElo "2224"]
[BlackElo "2397"]
[TimeControl "180+1"]
[EndTime "14:27:32 PDT"]
[Termination "Laico won by resignation"]

1. e4 {[%clk 0:03:00.9]} 1... e6 {[%clk 0:02:58.5]} 2. d4 {[%clk 0:03:00.5]}
2... d5 {[%clk 0:02:59.3]} 3. Nc3 {[%clk 0:03:00.9]} 3... Nf6 {[%clk 0:02:59.6]}
4. Bg5 {[%clk 0:03:00.2]} 4... Be7 {[%clk 0:02:59.2]} 5. e5 {[%clk 0:03:00.2]}
5... Nfd7 {[%clk 0:02:59.9]} 6. h4 {[%clk 0:03:00]} 6... O-O {[%clk 0:03:00.3]}
7. Qg4 {[%clk 0:02:59.3]} 7... Kh8 {[%clk 0:03:00]} 8. f4 {[%clk 0:02:56.5]}
8... c5 {[%clk 0:03:00.4]} 9. Bxe7 {[%clk 0:02:55.9]} 9... Qxe7 {[%clk
0:02:59.9]} 10. O-O-O {[%clk 0:02:55.4]} 10... cxd4 {[%clk 0:02:59.4]} 11. Rxd4
{[%clk 0:02:55.1]} 11... Nc6 {[%clk 0:02:59.4]} 12. Rd1 {[%clk 0:02:54.3]} 12...
f6 {[%clk 0:02:59.9]} 13. exf6 {[%clk 0:02:53.2]} 13... Nxf6 {[%clk 0:03:00.8]}
14. Qf3 {[%clk 0:02:51.7]} 14... a6 {[%clk 0:02:34.3]} 15. Re1 {[%clk
0:02:51.5]} 15... b5 {[%clk 0:02:33.1]} 16. Bd3 {[%clk 0:02:45.9]} 16... b4
{[%clk 0:02:21.5]} 17. Nce2 {[%clk 0:02:45.4]} 17... a5 {[%clk 0:02:18.3]} 18.
g4 {[%clk 0:02:43.6]} 18... Nd7 {[%clk 0:02:09]} 19. Qe3 {[%clk 0:02:25.3]}
19... Ba6 {[%clk 0:02:02.9]} 20. Nf3 {[%clk 0:02:23]} 20... Bxd3 {[%clk
0:02:01.6]} 21. cxd3 {[%clk 0:02:23]} 21... a4 {[%clk 0:01:53]} 22. Kb1 {[%clk
0:02:20.2]} 22... a3 {[%clk 0:01:46.2]} 23. b3 {[%clk 0:02:19.2]} 23... Qf6
{[%clk 0:01:46.3]} 24. d4 {[%clk 0:02:13.1]} 24... Na7 {[%clk 0:01:43.2]} 25.
Ne5 {[%clk 0:02:09.9]} 25... Nxe5 {[%clk 0:01:41]} 26. fxe5 {[%clk 0:02:09.8]}
26... Qg6+ {[%clk 0:01:40.7]} 27. Ka1 {[%clk 0:02:07.7]} 27... Qc2 {[%clk
0:01:03.6]} 28. Qc1 {[%clk 0:02:04.3]} 28... Qd3 {[%clk 0:00:56.9]} 29. Qb1
{[%clk 0:01:58.6]} 29... Qe3 {[%clk 0:00:44.8]} 30. Qc1 {[%clk 0:01:56.9]} 30...
Qe4 {[%clk 0:00:43]} 31. Qb1 {[%clk 0:01:50.1]} 31... Qxg4 {[%clk 0:00:43.1]}
32. Rhg1 {[%clk 0:01:41.8]} 32... Qf5 {[%clk 0:00:43.3]} 33. Ref1 {[%clk
0:01:37.3]} 33... Qxb1+ {[%clk 0:00:39.8]} 34. Kxb1 {[%clk 0:01:38.2]} 34... Nb5
{[%clk 0:00:39.1]} 35. Kc2 {[%clk 0:01:37.2]} 35... Kg8 {[%clk 0:00:36.2]} 36.
Kd3 {[%clk 0:01:31.5]} 36... Rxf1 {[%clk 0:00:33.5]} 37. Rxf1 {[%clk 0:01:31]}
37... Rc8 {[%clk 0:00:33.7]} 38. h5 {[%clk 0:01:22]} 38... Rc7 {[%clk
0:00:32.2]} 39. h6 {[%clk 0:01:21.4]} 39... Nc3 {[%clk 0:00:25.7]} 40. Nf4
{[%clk 0:01:18.1]} 40... Rf7 {[%clk 0:00:17.2]} 41. hxg7 {[%clk 0:01:16]} 41...
h5 {[%clk 0:00:16.8]} 42. Ke3 {[%clk 0:01:08.6]} 42... Nxa2 {[%clk 0:00:14.5]}
43. Rh1 {[%clk 0:01:07.3]} 43... Rxg7 {[%clk 0:00:11.4]} 44. Nxe6 {[%clk
0:01:06.7]} 44... Rg3+ {[%clk 0:00:11.3]} 45. Kf4 {[%clk 0:01:06.7]} 45... Rxb3
{[%clk 0:00:12.2]} 46. Rxh5 {[%clk 0:01:05.5]} 46... Nc3 {[%clk 0:00:12.4]} 47.
Ng5 {[%clk 0:01:05.3]} 47... a2 {[%clk 0:00:11.8]} 48. e6 {[%clk 0:01:05.5]}
48... a1=Q {[%clk 0:00:11.5]} 49. e7 {[%clk 0:01:05.4]} 49... Qf1+ {[%clk
0:00:11.5]} 50. Ke5 {[%clk 0:01:04.6]} 50... Qe2+ {[%clk 0:00:11.4]} 51. Kd6
{[%clk 0:01:04.8]} 51... Nb5+ {[%clk 0:00:10.8]} 52. Kd7 {[%clk 0:01:04.3]}
52... Qxh5 {[%clk 0:00:07.8]} 53. e8=Q+ {[%clk 0:01:02.7]} 53... Qxe8+ {[%clk
0:00:08]} 54. Kxe8 {[%clk 0:01:03.6]} 54... Nxd4 {[%clk 0:00:08.3]} 55. Kd7
{[%clk 0:01:03.1]} 55... Rc3 {[%clk 0:00:07.6]} 56. Kd6 {[%clk 0:01:04]} 56...
Nf3 {[%clk 0:00:05.8]} 57. Kxd5 {[%clk 0:01:04.9]} 57... Nxg5 {[%clk 0:00:05.5]}
58. Kd4 {[%clk 0:01:04.7]} 58... Ne6+ {[%clk 0:00:05.7]} 59. Kd5 {[%clk
0:01:04.6]} 59... b3 {[%clk 0:00:06.3]} 60. Kxe6 {[%clk 0:01:04.8]} 60... b2
{[%clk 0:00:07.2]} 61. Kd5 {[%clk 0:01:05.6]} 61... b1=Q {[%clk 0:00:07.6]} 62.
Kd4 {[%clk 0:01:06.5]} 62... Qb4+ {[%clk 0:00:05.6]} 63. Kd5 {[%clk 0:01:05.8]}
63... Rc5+ {[%clk 0:00:06.5]} 64. Kd6 {[%clk 0:01:06.2]} 64... Qb6+ {[%clk
0:00:07.4]} 65. Kd7 {[%clk 0:01:06.7]} 65... Rc7+ {[%clk 0:00:08.3]} 0-1

[Event "Late-Titled-Tuesday-Blitz-April-02-2024"]
[Site "Chess.com"]
[Date "2024.04.02"]
[Round "3"]
[White "AlexeiShirov"]
[Black "anasta10"]
[Result "0-1"]
[WhiteElo "2810"]
[BlackElo "2577"]
[TimeControl "180+1"]
[EndTime "14:27:36 PDT"]
[Termination "anasta10 won by checkmate"]

1. e4 {[%clk 0:03:00.9]} 1... g6 {[%clk 0:02:59.1]} 2. d4 {[%clk 0:02:59.8]}
2... Bg7 {[%clk 0:02:59.2]} 3. Nc3 {[%clk 0:02:58.6]} 3... c6 {[%clk 0:02:58.3]}
4. f4 {[%clk 0:02:57.7]} 4... d5 {[%clk 0:02:58.1]} 5. e5 {[%clk 0:02:57.7]}
5... Nh6 {[%clk 0:02:58.2]} 6. Nf3 {[%clk 0:02:57]} 6... O-O {[%clk 0:02:58.8]}
7. h3 {[%clk 0:02:47.2]} 7... f6 {[%clk 0:02:59.1]} 8. Bd3 {[%clk 0:02:42.3]}
8... c5 {[%clk 0:02:33.2]} 9. dxc5 {[%clk 0:02:37.6]} 9... fxe5 {[%clk
0:02:30.5]} 10. fxe5 {[%clk 0:02:28.7]} 10... Nc6 {[%clk 0:02:22.3]} 11. O-O
{[%clk 0:02:27.3]} 11... Nf7 {[%clk 0:02:15.3]} 12. Bb5 {[%clk 0:02:02.6]} 12...
e6 {[%clk 0:01:49.5]} 13. Bxc6 {[%clk 0:01:59.8]} 13... bxc6 {[%clk 0:01:50.4]}
14. Re1 {[%clk 0:01:58.5]} 14... Rb8 {[%clk 0:01:32.1]} 15. a3 {[%clk 0:01:47]}
15... a5 {[%clk 0:01:31.4]} 16. Qd4 {[%clk 0:01:43.3]} 16... Nh6 {[%clk
0:01:25.1]} 17. Bg5 {[%clk 0:01:40.5]} 17... Qc7 {[%clk 0:01:12.6]} 18. b4
{[%clk 0:01:38.3]} 18... Ba6 {[%clk 0:00:55.2]} 19. Rab1 {[%clk 0:01:05.3]}
19... axb4 {[%clk 0:00:52.7]} 20. axb4 {[%clk 0:01:04.3]} 20... Rxf3 {[%clk
0:00:27.7]} 21. gxf3 {[%clk 0:01:03.1]} 21... Nf5 {[%clk 0:00:28.5]} 22. Qf4
{[%clk 0:00:53.7]} 22... h6 {[%clk 0:00:28.1]} 23. Bh4 {[%clk 0:00:43.3]} 23...
g5 {[%clk 0:00:28.2]} 24. Bxg5 {[%clk 0:00:43.4]} 24... hxg5 {[%clk 0:00:29.1]}
25. Qxg5 {[%clk 0:00:43.4]} 25... Kf7 {[%clk 0:00:18.5]} 26. Qh5+ {[%clk
0:00:42.5]} 26... Ke7 {[%clk 0:00:16.6]} 27. Ra1 {[%clk 0:00:33.9]} 27... Bc4
{[%clk 0:00:12.6]} 28. Qg5+ {[%clk 0:00:31.3]} 28... Kd7 {[%clk 0:00:12.4]} 29.
Ne4 {[%clk 0:00:21.8]} 29... dxe4 {[%clk 0:00:12.3]} 30. fxe4 {[%clk 0:00:21.2]}
30... Bxe5 {[%clk 0:00:09.6]} 31. exf5 {[%clk 0:00:19.4]} 31... Bd4+ {[%clk
0:00:10.3]} 32. Kg2 {[%clk 0:00:18.1]} 32... Bd5+ {[%clk 0:00:10.5]} 33. Kf1
{[%clk 0:00:18.1]} 33... Rf8 {[%clk 0:00:04.4]} 34. Ke2 {[%clk 0:00:10.7]} 34...
Rxf5 {[%clk 0:00:03.3]} 35. Qg8 {[%clk 0:00:10.4]} 35... Qe5+ {[%clk 0:00:03.4]}
36. Kd1 {[%clk 0:00:09.7]} 36... Bf3+ {[%clk 0:00:03.6]} 37. Kd2 {[%clk
0:00:09.8]} 37... Bc3+ {[%clk 0:00:03.8]} 38. Kc1 {[%clk 0:00:08.6]} 38... Qxe1#
{[%clk 0:00:03.7]} 0-1

[Event "Late-Titled-Tuesday-Blitz-April-02-2024"]
[Site "Chess.com"]
[Date "2024.04.02"]
[Round "3"]
[White "kikoveiga"]
[Black "ChempionBg"]
[Result "1-0"]
[WhiteElo "2502"]
[BlackElo "2282"]
[TimeControl "180+1"]
[EndTime "14:27:37 PDT"]
[Termination "kikoveiga won on time"]

1. e4 {[%clk 0:03:00.9]} 1... c5 {[%clk 0:02:55]} 2. Nf3 {[%clk 0:03:00.5]} 2...
d6 {[%clk 0:02:55.5]} 3. d4 {[%clk 0:03:01.1]} 3... cxd4 {[%clk 0:02:55.8]} 4.
Nxd4 {[%clk 0:03:02]} 4... Nf6 {[%clk 0:02:53]} 5. Nc3 {[%clk 0:03:02.5]} 5...
a6 {[%clk 0:02:50.1]} 6. Bg5 {[%clk 0:03:03.1]} 6... Nbd7 {[%clk 0:02:48.8]} 7.
f4 {[%clk 0:03:03.4]} 7... e6 {[%clk 0:02:48]} 8. Qf3 {[%clk 0:03:03.7]} 8... h6
{[%clk 0:02:46.2]} 9. Bh4 {[%clk 0:03:03]} 9... g5 {[%clk 0:02:46.2]} 10. fxg5
{[%clk 0:03:01.5]} 10... hxg5 {[%clk 0:02:46.3]} 11. Bxg5 {[%clk 0:03:01]} 11...
Be7 {[%clk 0:02:36.9]} 12. O-O-O {[%clk 0:02:48.6]} 12... Ne5 {[%clk 0:02:34.3]}
13. Qe2 {[%clk 0:02:49.3]} 13... Qc7 {[%clk 0:02:33.2]} 14. Nf3 {[%clk
0:02:28.9]} 14... Bd7 {[%clk 0:02:25.4]} 15. Nxe5 {[%clk 0:02:28.4]} 15... dxe5
{[%clk 0:02:24.7]} 16. Kb1 {[%clk 0:02:23.5]} 16... O-O-O {[%clk 0:02:20.7]} 17.
Bxf6 {[%clk 0:01:44.5]} 17... Bxf6 {[%clk 0:02:18]} 18. Qf2 {[%clk 0:01:45.4]}
18... Rh6 {[%clk 0:02:01.6]} 19. Qa7 {[%clk 0:01:21.3]} 19... Bc6 {[%clk
0:01:52.9]} 20. Be2 {[%clk 0:00:52.1]} 20... Rd4 {[%clk 0:01:42.1]} 21. Bf3
{[%clk 0:00:51.4]} 21... Qd6 {[%clk 0:01:29.6]} 22. Qa8+ {[%clk 0:00:47.7]}
22... Qb8 {[%clk 0:01:25.4]} 23. Qxb8+ {[%clk 0:00:45.2]} 23... Kxb8 {[%clk
0:01:23]} 24. h3 {[%clk 0:00:43.8]} 24... Rh8 {[%clk 0:01:17.9]} 25. Rhf1 {[%clk
0:00:42.8]} 25... Bg7 {[%clk 0:01:01.5]} 26. Ne2 {[%clk 0:00:42.6]} 26... Rxd1+
{[%clk 0:00:53.6]} 27. Rxd1 {[%clk 0:00:42.6]} 27... Kc7 {[%clk 0:00:52.7]} 28.
Nc1 {[%clk 0:00:39.1]} 28... f5 {[%clk 0:00:47.4]} 29. Re1 {[%clk 0:00:22]}
29... Rh4 {[%clk 0:00:39.2]} 30. exf5 {[%clk 0:00:10]} 30... Bxf3 {[%clk
0:00:37.6]} 31. gxf3 {[%clk 0:00:10.5]} 31... exf5 {[%clk 0:00:37.6]} 32. Nd3
{[%clk 0:00:10.6]} 32... Rxh3 {[%clk 0:00:35]} 33. Kc1 {[%clk 0:00:09.2]} 33...
Kd6 {[%clk 0:00:29.3]} 34. Rd1 {[%clk 0:00:08.9]} 1-0

[Event "Late-Titled-Tuesday-Blitz-April-02-2024"]
[Site "Chess.com"]
[Date "2024.04.02"]
[Round "3"]
[White "maurovargas01"]
[Black "chessydotcom"]
[Result "0-1"]
[WhiteElo "1863"]
[BlackElo "2300"]
[TimeControl "180+1"]
[EndTime "14:27:37 PDT"]
[Termination "chessydotcom won by checkmate"]

1. e4 {[%clk 0:02:59.4]} 1... c5 {[%clk 0:02:59.8]} 2. Nc3 {[%clk 0:02:58.1]}
2... e6 {[%clk 0:02:59.2]} 3. f4 {[%clk 0:02:59]} 3... d5 {[%clk 0:02:58.6]} 4.
Nf3 {[%clk 0:02:59.9]} 4... dxe4 {[%clk 0:02:56.7]} 5. Nxe4 {[%clk 0:03:00.8]}
5... Nf6 {[%clk 0:02:57.6]} 6. Nf2 {[%clk 0:02:59.8]} 6... Nc6 {[%clk
0:02:56.6]} 7. d3 {[%clk 0:02:58.1]} 7... Bd6 {[%clk 0:02:56.4]} 8. g3 {[%clk
0:02:57.6]} 8... b6 {[%clk 0:02:52.3]} 9. Bg2 {[%clk 0:02:57.4]} 9... Bb7 {[%clk
0:02:52.9]} 10. O-O {[%clk 0:02:57.1]} 10... Qc7 {[%clk 0:02:53.4]} 11. c3
{[%clk 0:02:53.6]} 11... O-O {[%clk 0:02:53.6]} 12. Qe2 {[%clk 0:02:50.5]} 12...
a5 {[%clk 0:02:51.4]} 13. Rd1 {[%clk 0:02:46.4]} 13... Rad8 {[%clk 0:02:49.8]}
14. Be3 {[%clk 0:02:46.1]} 14... Ba6 {[%clk 0:02:45.7]} 15. Rd2 {[%clk
0:02:44.7]} 15... Nd5 {[%clk 0:02:43.6]} 16. Qe1 {[%clk 0:02:37.7]} 16... Nxe3
{[%clk 0:02:41.2]} 17. Qxe3 {[%clk 0:02:37.4]} 17... Ne7 {[%clk 0:02:41]} 18.
Ne4 {[%clk 0:02:34.5]} 18... Nf5 {[%clk 0:02:32.8]} 19. Qf2 {[%clk 0:02:25.2]}
19... Be7 {[%clk 0:02:29.6]} 20. Rad1 {[%clk 0:02:22.9]} 20... Nd6 {[%clk
0:02:13.4]} 21. Neg5 {[%clk 0:02:13.1]} 21... h6 {[%clk 0:02:05]} 22. Nh3 {[%clk
0:02:12.2]} 22... c4 {[%clk 0:02:03.5]} 23. d4 {[%clk 0:02:10]} 23... Ne4 {[%clk
0:02:03.1]} 24. Qe2 {[%clk 0:02:06.7]} 24... Nxd2 {[%clk 0:02:03.1]} 25. Rxd2
{[%clk 0:02:07.6]} 25... Bb7 {[%clk 0:01:58.1]} 26. Nf2 {[%clk 0:02:05.9]} 26...
b5 {[%clk 0:01:55]} 27. Ne4 {[%clk 0:02:04.6]} 27... b4 {[%clk 0:01:55.1]} 28.
Qf2 {[%clk 0:01:53.4]} 28... a4 {[%clk 0:01:52.5]} 29. Ne5 {[%clk 0:01:37]}
29... f5 {[%clk 0:01:32.5]} 30. Nc5 {[%clk 0:01:23.4]} 30... Bxc5 {[%clk
0:01:24.4]} 31. dxc5 {[%clk 0:01:23.4]} 31... Bxg2 {[%clk 0:01:12.1]} 32. Kxg2
{[%clk 0:01:22.7]} 32... Rxd2 {[%clk 0:01:04.8]} 33. Qxd2 {[%clk 0:01:21]} 33...
Qxc5 {[%clk 0:01:02]} 34. cxb4 {[%clk 0:01:10.2]} 34... Qd5+ {[%clk 0:01:00]}
35. Qxd5 {[%clk 0:01:05.2]} 35... exd5 {[%clk 0:01:00.9]} 36. Kf3 {[%clk
0:01:04.1]} 36... Rb8 {[%clk 0:00:54]} 37. a3 {[%clk 0:01:02.8]} 37... Rc8
{[%clk 0:00:48.4]} 38. Ke3 {[%clk 0:01:01.1]} 38... c3 {[%clk 0:00:47]} 39. bxc3
{[%clk 0:01:00.7]} 39... Rxc3+ {[%clk 0:00:47.9]} 40. Kd4 {[%clk 0:00:54.8]}
40... Rxa3 {[%clk 0:00:48.8]} 41. Kxd5 {[%clk 0:00:54.7]} 41... Rb3 {[%clk
0:00:48.5]} 42. Kc5 {[%clk 0:00:53.4]} 42... a3 {[%clk 0:00:47.6]} 43. Nc4
{[%clk 0:00:42.2]} 43... a2 {[%clk 0:00:46.4]} 44. Nd2 {[%clk 0:00:39.3]} 44...
Rb2 {[%clk 0:00:42.4]} 45. b5 {[%clk 0:00:38.3]} 45... a1=Q {[%clk 0:00:41.2]}
46. Nc4 {[%clk 0:00:37]} 46... Rc2 {[%clk 0:00:39.8]} 47. b6 {[%clk 0:00:35.5]}
47... Qa6 {[%clk 0:00:37.9]} 48. Kd5 {[%clk 0:00:31.3]} 48... Rxc4 {[%clk
0:00:38.8]} 49. b7 {[%clk 0:00:29.7]} 49... Qb5+ {[%clk 0:00:39.3]} 50. Kd6
{[%clk 0:00:28.5]} 50... Rc6+ {[%clk 0:00:40.2]} 51. Kd7 {[%clk 0:00:28]} 51...
Qxb7+ {[%clk 0:00:41]} 52. Kd8 {[%clk 0:00:27.2]} 52... Rc8# {[%clk 0:00:41.9]}
0-1

[Event "Late-Titled-Tuesday-Blitz-April-02-2024"]
[Site "Chess.com"]
[Date "2024.04.02"]
[Round "3"]
[White "WilsonPalencia21"]
[Black "Kirill_Klukin"]
[Result "1-0"]
[WhiteElo "2574"]
[BlackElo "2794"]
[TimeControl "180+1"]
[EndTime "14:27:41 PDT"]
[Termination "WilsonPalencia21 won by resignation"]

1. d4 {[%clk 0:03:00.9]} 1... d5 {[%clk 0:02:57.5]} 2. c4 {[%clk 0:03:00.4]}
2... e6 {[%clk 0:02:54.1]} 3. Nf3 {[%clk 0:02:59.2]} 3... a6 {[%clk 0:02:53.9]}
4. cxd5 {[%clk 0:02:54.4]} 4... exd5 {[%clk 0:02:54.8]} 5. Nc3 {[%clk
0:02:54.9]} 5... c6 {[%clk 0:02:54.4]} 6. Bg5 {[%clk 0:02:55.5]} 6... Nf6 {[%clk
0:02:53.4]} 7. e3 {[%clk 0:02:55.4]} 7... Bd6 {[%clk 0:02:47.2]} 8. Bd3 {[%clk
0:02:42]} 8... h6 {[%clk 0:02:47]} 9. Bf4 {[%clk 0:02:39.5]} 9... O-O {[%clk
0:02:44.8]} 10. O-O {[%clk 0:02:39]} 10... Be6 {[%clk 0:02:41]} 11. Qd2 {[%clk
0:02:37.6]} 11... Qc7 {[%clk 0:02:39.9]} 12. Na4 {[%clk 0:02:36.1]} 12... Nbd7
{[%clk 0:02:36.5]} 13. b4 {[%clk 0:02:33.4]} 13... Bxf4 {[%clk 0:02:27]} 14.
exf4 {[%clk 0:02:33.5]} 14... Ne4 {[%clk 0:02:27.8]} 15. Qe3 {[%clk 0:02:25]}
15... Rfe8 {[%clk 0:02:24.8]} 16. Nc5 {[%clk 0:01:59.1]} 16... Bf5 {[%clk
0:02:02]} 17. Nxd7 {[%clk 0:01:56.9]} 17... Bxd7 {[%clk 0:01:59]} 18. Rfe1
{[%clk 0:01:49.7]} 18... Nd6 {[%clk 0:01:56.2]} 19. Qd2 {[%clk 0:01:45]} 19...
Bf5 {[%clk 0:01:51.8]} 20. Bf1 {[%clk 0:01:33.9]} 20... b5 {[%clk 0:01:46.1]}
21. Rxe8+ {[%clk 0:01:27]} 21... Rxe8 {[%clk 0:01:45.6]} 22. Re1 {[%clk
0:01:27.6]} 22... Ra8 {[%clk 0:01:33.1]} 23. Rc1 {[%clk 0:01:14.3]} 23... Nc4
{[%clk 0:01:28.6]} 24. Bxc4 {[%clk 0:01:13.1]} 24... dxc4 {[%clk 0:01:24.3]} 25.
Re1 {[%clk 0:00:56.7]} 25... a5 {[%clk 0:01:18.7]} 26. a3 {[%clk 0:00:52.8]}
26... axb4 {[%clk 0:01:18.6]} 27. axb4 {[%clk 0:00:53.7]} 27... Qd6 {[%clk
0:01:12.5]} 28. h3 {[%clk 0:00:51.2]} 28... Be6 {[%clk 0:01:11.7]} 29. Re5
{[%clk 0:00:47]} 29... Bd5 {[%clk 0:01:08.4]} 30. Nh4 {[%clk 0:00:41.9]} 30...
Be6 {[%clk 0:00:44]} 31. f5 {[%clk 0:00:38.3]} 31... Bd5 {[%clk 0:00:44.3]} 32.
Qe3 {[%clk 0:00:29.3]} 32... Ra1+ {[%clk 0:00:35.2]} 33. Kh2 {[%clk 0:00:25.1]}
33... f6 {[%clk 0:00:35.8]} 34. Qg3 {[%clk 0:00:17.2]} 34... fxe5 {[%clk
0:00:31]} 35. dxe5 {[%clk 0:00:18.1]} 35... Qd7 {[%clk 0:00:26.4]} 36. f6 {[%clk
0:00:16.8]} 36... Be4 {[%clk 0:00:20.7]} 37. f3 {[%clk 0:00:16.2]} 37... Bh7
{[%clk 0:00:18.5]} 38. e6 {[%clk 0:00:09.4]} 38... Rh1+ {[%clk 0:00:02.9]} 39.
Kxh1 {[%clk 0:00:09.3]} 39... Qd1+ {[%clk 0:00:03.5]} 40. Kh2 {[%clk 0:00:09.7]}
40... g5 {[%clk 0:00:04.1]} 41. Qb8+ {[%clk 0:00:08.9]} 1-0